[Event "Late-Titled-Tuesday-Blitz-September-12-2023"]
[Site "Chess.com"]
[Date "2023.09.12"]
[Round "1"]
[White "Joshukid"]
[Black "MBA_CHESS_2021"]
[Result "1-0"]
[WhiteElo "2539"]
[BlackElo "2221"]
[TimeControl "180+1"]
[EndTime "14:08:10 PDT"]
[Termination "Joshukid won by checkmate"]

1. d4 {[%clk 0:02:47.1]} 1... d5 {[%clk 0:02:59.8]} 2. Nc3 {[%clk 0:02:46.5]}
2... Nf6 {[%clk 0:02:59.3]} 3. Bf4 {[%clk 0:02:46.9]} 3... c6 {[%clk 0:02:59.3]}
4. e3 {[%clk 0:02:46.6]} 4... Bf5 {[%clk 0:02:58.7]} 5. f3 {[%clk 0:02:46.5]}
5... e6 {[%clk 0:02:57.9]} 6. g4 {[%clk 0:02:45.9]} 6... Bg6 {[%clk 0:02:56.7]}
7. h4 {[%clk 0:02:46.8]} 7... h5 {[%clk 0:02:56.5]} 8. g5 {[%clk 0:02:47.5]}
8... Nfd7 {[%clk 0:02:54.6]} 9. Bd3 {[%clk 0:02:48.3]} 9... Bxd3 {[%clk
0:02:51.6]} 10. Qxd3 {[%clk 0:02:49.2]} 10... g6 {[%clk 0:02:52]} 11. O-O-O
{[%clk 0:02:49.2]} 11... Bg7 {[%clk 0:02:50]} 12. e4 {[%clk 0:02:49.8]} 12...
O-O {[%clk 0:02:49.4]} 13. Nge2 {[%clk 0:02:49.8]} 13... Na6 {[%clk 0:02:47.2]}
14. Bd6 {[%clk 0:02:47.9]} 14... Re8 {[%clk 0:02:45.3]} 15. f4 {[%clk
0:02:47.1]} 15... Nb6 {[%clk 0:02:44.8]} 16. Be5 {[%clk 0:02:43.6]} 16... Nb4
{[%clk 0:02:40.3]} 17. Qf3 {[%clk 0:02:36.8]} 17... dxe4 {[%clk 0:02:37.8]} 18.
Nxe4 {[%clk 0:02:32.6]} 18... Nxa2+ {[%clk 0:02:32.5]} 19. Kb1 {[%clk 0:02:32]}
19... Nb4 {[%clk 0:02:32.2]} 20. Nf6+ {[%clk 0:02:04.7]} 20... Bxf6 {[%clk
0:02:30.3]} 21. gxf6 {[%clk 0:02:03.5]} 21... Qd5 {[%clk 0:02:28.5]} 22. Qa3
{[%clk 0:01:42.3]} 22... a5 {[%clk 0:02:24.7]} 23. Nc3 {[%clk 0:01:42.1]} 23...
Qg2 {[%clk 0:02:12.8]} 24. Qb3 {[%clk 0:01:35.3]} 24... N6d5 {[%clk 0:01:55.2]}
25. Rhg1 {[%clk 0:01:34.5]} 25... Qf2 {[%clk 0:01:29.8]} 26. Ne4 {[%clk
0:01:01.7]} 26... Qe2 {[%clk 0:01:18.5]} 27. Ng3 {[%clk 0:00:56.7]} 27... a4
{[%clk 0:01:10.4]} 28. Nxe2 {[%clk 0:00:36.2]} 28... axb3 {[%clk 0:01:09.8]} 29.
cxb3 {[%clk 0:00:34.3]} 29... Ne3 {[%clk 0:00:59]} 30. Rc1 {[%clk 0:00:22.1]}
30... Ra6 {[%clk 0:00:51.5]} 31. Nc3 {[%clk 0:00:19.6]} 31... Rea8 {[%clk
0:00:48]} 32. Na4 {[%clk 0:00:19.5]} 32... b5 {[%clk 0:00:47.9]} 33. f5 {[%clk
0:00:17.9]} 33... exf5 {[%clk 0:00:46.8]} 34. Bd6 {[%clk 0:00:17.4]} 34... bxa4
{[%clk 0:00:46.2]} 35. Bxb4 {[%clk 0:00:17]} 35... axb3 {[%clk 0:00:46.3]} 36.
Ba3 {[%clk 0:00:17]} 36... Nc2 {[%clk 0:00:46.1]} 37. Rxc2 {[%clk 0:00:15.9]}
37... bxc2+ {[%clk 0:00:45.8]} 38. Kxc2 {[%clk 0:00:16.8]} 38... Ra4 {[%clk
0:00:44.9]} 39. Bc5 {[%clk 0:00:15.7]} 39... Re8 {[%clk 0:00:41.8]} 40. Kb3
{[%clk 0:00:14.5]} 40... Ra6 {[%clk 0:00:41.1]} 41. Kc4 {[%clk 0:00:14.2]} 41...
Re6 {[%clk 0:00:41]} 42. b4 {[%clk 0:00:12]} 42... Rxf6 {[%clk 0:00:41.1]} 43.
d5 {[%clk 0:00:12.7]} 43... cxd5+ {[%clk 0:00:41.1]} 44. Kxd5 {[%clk 0:00:13.6]}
44... Rfe6 {[%clk 0:00:41.6]} 45. b5 {[%clk 0:00:13.4]} 45... Ra2 {[%clk
0:00:41.7]} 46. Rb1 {[%clk 0:00:12.3]} 46... Rd2+ {[%clk 0:00:41.7]} 47. Kc4
{[%clk 0:00:12.1]} 47... Rc2+ {[%clk 0:00:41.7]} 48. Kd5 {[%clk 0:00:12]} 48...
Ree2 {[%clk 0:00:41.5]} 49. b6 {[%clk 0:00:11.1]} 49... Red2+ {[%clk 0:00:36.7]}
50. Kc6 {[%clk 0:00:10.7]} 50... Rb2 {[%clk 0:00:34.9]} 51. Rxb2 {[%clk
0:00:09.8]} 51... Rxb2 {[%clk 0:00:34.9]} 52. b7 {[%clk 0:00:10.7]} 52... f6
{[%clk 0:00:34.6]} 53. Bb6 {[%clk 0:00:10.7]} 53... g5 {[%clk 0:00:34.8]} 54.
b8=Q+ {[%clk 0:00:10.8]} 54... Kf7 {[%clk 0:00:35.2]} 55. hxg5 {[%clk
0:00:11.3]} 55... fxg5 {[%clk 0:00:35.2]} 56. Qb7+ {[%clk 0:00:11.4]} 56... Kg6
{[%clk 0:00:35.3]} 57. Qc8 {[%clk 0:00:12]} 57... Rc2+ {[%clk 0:00:34.9]} 58.
Bc5 {[%clk 0:00:12.7]} 58... h4 {[%clk 0:00:34.4]} 59. Qe6+ {[%clk 0:00:12.8]}
59... Kh5 {[%clk 0:00:33.4]} 60. Qxf5 {[%clk 0:00:13.5]} 60... Rc3 {[%clk
0:00:32.3]} 61. Qf7+ {[%clk 0:00:10.8]} 61... Kg4 {[%clk 0:00:32]} 62. Qe6+
{[%clk 0:00:11.4]} 62... Kg3 {[%clk 0:00:31]} 63. Qe5+ {[%clk 0:00:11.7]} 63...
Kg4 {[%clk 0:00:31.1]} 64. Qxc3 {[%clk 0:00:12.6]} 64... h3 {[%clk 0:00:31.3]}
65. Qd4+ {[%clk 0:00:11.5]} 65... Kh5 {[%clk 0:00:30]} 66. Qd1+ {[%clk
0:00:11.8]} 66... g4 {[%clk 0:00:29.6]} 67. Qg1 {[%clk 0:00:11.1]} 67... Kh4
{[%clk 0:00:29.5]} 68. Bf2+ {[%clk 0:00:11.8]} 68... Kg5 {[%clk 0:00:29.5]} 69.
Qg3 {[%clk 0:00:12.6]} 69... Kf5 {[%clk 0:00:30.2]} 70. Kd5 {[%clk 0:00:13.1]}
70... Kg5 {[%clk 0:00:30.2]} 71. Ke5 {[%clk 0:00:13.4]} 71... Kg6 {[%clk
0:00:30.5]} 72. Qxg4+ {[%clk 0:00:13.6]} 72... Kf7 {[%clk 0:00:31.4]} 73. Qxh3
{[%clk 0:00:14.5]} 73... Kg6 {[%clk 0:00:31.2]} 74. Be3 {[%clk 0:00:13.6]} 74...
Kf7 {[%clk 0:00:30.3]} 75. Qh7+ {[%clk 0:00:13.4]} 75... Ke8 {[%clk 0:00:29.3]}
76. Ke6 {[%clk 0:00:13]} 76... Kd8 {[%clk 0:00:29.4]} 77. Qd7# {[%clk
0:00:13.6]} 1-0

[Event "Late-Titled-Tuesday-Blitz-September-12-2023"]
[Site "Chess.com"]
[Date "2023.09.12"]
[Round "1"]
[White "MightyGMpretender"]
[Black "chosenpr"]
[Result "1-0"]
[WhiteElo "2727"]
[BlackElo "2400"]
[TimeControl "180+1"]
[EndTime "14:08:13 PDT"]
[Termination "MightyGMpretender won on time"]

1. e4 {[%clk 0:02:59.6]} 1... e5 {[%clk 0:02:19.6]} 2. Nf3 {[%clk 0:02:57.1]}
2... Nc6 {[%clk 0:02:18.9]} 3. Bb5 {[%clk 0:02:57.7]} 3... a6 {[%clk 0:02:18.2]}
4. Ba4 {[%clk 0:02:57.8]} 4... Nf6 {[%clk 0:02:17.9]} 5. O-O {[%clk 0:02:56.6]}
5... b5 {[%clk 0:02:14.5]} 6. Bb3 {[%clk 0:02:56.6]} 6... Be7 {[%clk 0:02:15.1]}
7. d3 {[%clk 0:02:55.2]} 7... O-O {[%clk 0:02:15]} 8. Nc3 {[%clk 0:02:55.8]}
8... h6 {[%clk 0:02:09.4]} 9. a4 {[%clk 0:02:43.4]} 9... b4 {[%clk 0:02:05.2]}
10. Nd5 {[%clk 0:02:44.1]} 10... d6 {[%clk 0:02:02.4]} 11. a5 {[%clk 0:02:39.1]}
11... Re8 {[%clk 0:02:01.2]} 12. Bd2 {[%clk 0:02:31.2]} 12... Rb8 {[%clk
0:01:58.2]} 13. h3 {[%clk 0:02:31.2]} 13... Bf8 {[%clk 0:01:54.3]} 14. Qe1
{[%clk 0:02:13.6]} 14... Nxd5 {[%clk 0:01:41.6]} 15. Bxd5 {[%clk 0:02:14.5]}
15... Ne7 {[%clk 0:01:12.9]} 16. Bxb4 {[%clk 0:02:14.6]} 16... Nxd5 {[%clk
0:01:11.4]} 17. exd5 {[%clk 0:02:15.5]} 17... Qf6 {[%clk 0:01:01.2]} 18. Nh2
{[%clk 0:02:08.8]} 18... Qg6 {[%clk 0:00:49.6]} 19. Kh1 {[%clk 0:02:06.7]} 19...
Bb7 {[%clk 0:00:26.8]} 20. c4 {[%clk 0:02:03]} 20... Qxd3 {[%clk 0:00:25.1]} 21.
Qc3 {[%clk 0:02:03.7]} 21... Qxc3 {[%clk 0:00:17.8]} 22. Bxc3 {[%clk 0:02:03.9]}
22... Bc8 {[%clk 0:00:18.5]} 23. Ng4 {[%clk 0:01:52]} 23... Bf5 {[%clk 0:00:18]}
24. Ne3 {[%clk 0:01:51.6]} 24... Bd3 {[%clk 0:00:17.5]} 25. Rfc1 {[%clk
0:01:46.2]} 25... Bg6 {[%clk 0:00:14.5]} 26. Nc2 {[%clk 0:01:45.3]} 26... Bxc2
{[%clk 0:00:13.5]} 27. Rxc2 {[%clk 0:01:46.2]} 27... f5 {[%clk 0:00:13.4]} 28.
g4 {[%clk 0:01:46.2]} 28... fxg4 {[%clk 0:00:12.7]} 29. hxg4 {[%clk 0:01:46.7]}
29... Be7 {[%clk 0:00:13.1]} 30. Bd2 {[%clk 0:01:42.8]} 30... Rf8 {[%clk
0:00:12.2]} 31. Kg2 {[%clk 0:01:42.4]} 31... Bg5 {[%clk 0:00:12.1]} 32. Be3
{[%clk 0:01:12.8]} 32... Bxe3 {[%clk 0:00:09.5]} 33. fxe3 {[%clk 0:01:13.7]}
33... Rb4 {[%clk 0:00:09.2]} 34. Ra2 {[%clk 0:01:02.6]} 34... Rfb8 {[%clk
0:00:08.6]} 35. Kf3 {[%clk 0:01:02.2]} 35... Kf7 {[%clk 0:00:06.8]} 36. Ke4
{[%clk 0:01:02.7]} 36... Ke7 {[%clk 0:00:06.5]} 37. Kd3 {[%clk 0:01:03.3]} 37...
Rf8 {[%clk 0:00:03.5]} 38. Kc3 {[%clk 0:01:02.5]} 38... Rfb8 {[%clk 0:00:03.7]}
39. Ra3 {[%clk 0:01:01.3]} 39... R4b7 {[%clk 0:00:02.9]} 40. b3 {[%clk
0:01:00.8]} 40... Rc8 {[%clk 0:00:01.5]} 41. Ra1 {[%clk 0:00:55.3]} 41... c5
{[%clk 0:00:02.2]} 42. dxc6 {[%clk 0:00:53.2]} 42... Rxc6 {[%clk 0:00:02.9]} 43.
Rd2 {[%clk 0:00:52.8]} 43... Rd7 {[%clk 0:00:02.7]} 44. Rad1 {[%clk 0:00:52.5]}
44... Ke6 {[%clk 0:00:02.2]} 45. Rd5 {[%clk 0:00:50.4]} 45... Rb7 {[%clk
0:00:02.5]} 46. Rg1 {[%clk 0:00:46.2]} 46... Rf7 {[%clk 0:00:02.4]} 47. g5
{[%clk 0:00:46.1]} 47... Rf3 {[%clk 0:00:02.5]} 48. Kd3 {[%clk 0:00:46.4]} 48...
h5 {[%clk 0:00:02.2]} 49. g6 {[%clk 0:00:46]} 49... Rf6 {[%clk 0:00:01.7]} 50.
Rg5 {[%clk 0:00:45.1]} 50... Ke7 {[%clk 0:00:02.4]} 51. Rxh5 {[%clk 0:00:42.6]}
51... Rxg6 {[%clk 0:00:02.9]} 52. Rh8 {[%clk 0:00:43.2]} 52... Re6 {[%clk
0:00:03.2]} 53. Rb8 {[%clk 0:00:42.8]} 53... Kd7 {[%clk 0:00:01.9]} 54. Rb7+
{[%clk 0:00:42.7]} 54... Rc7 {[%clk 0:00:02.3]} 55. Rb6 {[%clk 0:00:43.1]} 55...
Rc6 {[%clk 0:00:02.8]} 56. Rb8 {[%clk 0:00:42.9]} 56... Rc7 {[%clk 0:00:03.2]}
57. Rg8 {[%clk 0:00:41.3]} 57... Kc6 {[%clk 0:00:04.1]} 58. Ke4 {[%clk
0:00:41.1]} 58... Rd7 {[%clk 0:00:05]} 59. Rd2 {[%clk 0:00:40.8]} 59... Rf6
{[%clk 0:00:05.6]} 60. Rc8+ {[%clk 0:00:40.6]} 60... Rc7 {[%clk 0:00:05.5]} 61.
Rb8 {[%clk 0:00:29.9]} 61... Rb7 {[%clk 0:00:05.7]} 62. Rxb7 {[%clk 0:00:30.6]}
62... Kxb7 {[%clk 0:00:05.6]} 63. Rg2 {[%clk 0:00:31.4]} 63... g6 {[%clk
0:00:05.2]} 64. Kd5 {[%clk 0:00:31.9]} 64... Kc7 {[%clk 0:00:05.1]} 65. b4
{[%clk 0:00:31.7]} 65... Kd7 {[%clk 0:00:05.4]} 66. b5 {[%clk 0:00:32.1]} 66...
Ke7 {[%clk 0:00:03.8]} 67. bxa6 {[%clk 0:00:31.4]} 67... Rf8 {[%clk 0:00:03.6]}
68. Kc6 {[%clk 0:00:31.3]} 68... Ra8 {[%clk 0:00:03.6]} 69. Kb7 {[%clk
0:00:31.7]} 69... Rd8 {[%clk 0:00:02.7]} 70. a7 {[%clk 0:00:31.9]} 70... Rd7+
{[%clk 0:00:03.5]} 71. Kb6 {[%clk 0:00:32.4]} 71... Rd8 {[%clk 0:00:03.8]} 72.
Rxg6 {[%clk 0:00:31.9]} 1-0

[Event "Late-Titled-Tuesday-Blitz-September-12-2023"]
[Site "Chess.com"]
[Date "2023.09.12"]
[Round "1"]
[White "IMGC"]
[Black "GarayevKanan"]
[Result "1-0"]
[WhiteElo "2418"]
[BlackElo "2718"]
[TimeControl "180+1"]
[EndTime "14:08:18 PDT"]
[Termination "IMGC won by resignation"]

1. d4 {[%clk 0:02:59.1]} 1... Nf6 {[%clk 0:02:56.4]} 2. Nf3 {[%clk 0:02:59.1]}
2... e6 {[%clk 0:02:41.3]} 3. e3 {[%clk 0:02:58.9]} 3... d5 {[%clk 0:02:37.7]}
4. c4 {[%clk 0:02:59.4]} 4... c5 {[%clk 0:02:34.4]} 5. cxd5 {[%clk 0:02:58.5]}
5... exd5 {[%clk 0:02:28.7]} 6. Nc3 {[%clk 0:02:57.7]} 6... Nc6 {[%clk
0:02:28.4]} 7. Be2 {[%clk 0:02:56.8]} 7... cxd4 {[%clk 0:02:22.2]} 8. Nxd4
{[%clk 0:02:56.4]} 8... Bd6 {[%clk 0:02:20.9]} 9. O-O {[%clk 0:02:55.7]} 9...
O-O {[%clk 0:02:18.8]} 10. b3 {[%clk 0:02:52.4]} 10... Nxd4 {[%clk 0:02:07.7]}
11. Qxd4 {[%clk 0:02:48.7]} 11... Qc7 {[%clk 0:02:07.4]} 12. Nb5 {[%clk
0:02:00.7]} 12... Qe7 {[%clk 0:01:22.6]} 13. Nxd6 {[%clk 0:01:58.9]} 13... Qxd6
{[%clk 0:01:23.5]} 14. Bb2 {[%clk 0:01:54.5]} 14... Bf5 {[%clk 0:01:16.6]} 15.
Rac1 {[%clk 0:01:54.3]} 15... a6 {[%clk 0:01:12.2]} 16. g4 {[%clk 0:01:42]}
16... Be6 {[%clk 0:00:56]} 17. g5 {[%clk 0:01:35.4]} 17... Ne8 {[%clk 0:00:42]}
18. f4 {[%clk 0:01:24.5]} 18... f6 {[%clk 0:00:38.6]} 19. h4 {[%clk 0:01:16.3]}
19... Rf7 {[%clk 0:00:25.4]} 20. Bf3 {[%clk 0:01:08]} 20... Rd8 {[%clk
0:00:23.1]} 21. Bg2 {[%clk 0:00:57.6]} 21... Re7 {[%clk 0:00:22.9]} 22. h5
{[%clk 0:00:54.4]} 22... Nc7 {[%clk 0:00:17.7]} 23. a4 {[%clk 0:00:49.2]} 23...
Bf7 {[%clk 0:00:14.7]} 24. Rcd1 {[%clk 0:00:31.5]} 24... Bxh5 {[%clk 0:00:11.3]}
25. Rd2 {[%clk 0:00:30.7]} 25... fxg5 {[%clk 0:00:09.2]} 26. fxg5 {[%clk
0:00:29.5]} 26... Rf8 {[%clk 0:00:06.1]} 27. Rxf8+ {[%clk 0:00:26.4]} 27... Kxf8
{[%clk 0:00:07]} 28. Bc3 {[%clk 0:00:26.1]} 28... Ne6 {[%clk 0:00:03.7]} 29. Bb4
{[%clk 0:00:21.1]} 29... Nxd4 {[%clk 0:00:02.7]} 30. Bxd6 {[%clk 0:00:21.4]}
30... Nf5 {[%clk 0:00:02.4]} 31. Bxe7+ {[%clk 0:00:21.3]} 31... Kxe7 {[%clk
0:00:03.1]} 32. Rxd5 {[%clk 0:00:19.3]} 32... Bg6 {[%clk 0:00:03.5]} 33. e4
{[%clk 0:00:18]} 33... Nd6 {[%clk 0:00:03.7]} 34. e5 {[%clk 0:00:17.7]} 34...
Nf5 {[%clk 0:00:04.3]} 35. Rc5 {[%clk 0:00:16.4]} 35... Ke6 {[%clk 0:00:03.9]}
36. Bh3 {[%clk 0:00:16.5]} 36... h6 {[%clk 0:00:03.6]} 37. gxh6 {[%clk 0:00:16]}
37... gxh6 {[%clk 0:00:04.5]} 38. Kf2 {[%clk 0:00:15]} 38... Ke7 {[%clk
0:00:04.4]} 39. Bxf5 {[%clk 0:00:14.5]} 39... Bxf5 {[%clk 0:00:05.3]} 40. Ke3
{[%clk 0:00:15]} 40... Kd7 {[%clk 0:00:04.8]} 41. Kf4 {[%clk 0:00:14.1]} 41...
Be6 {[%clk 0:00:05.3]} 42. b4 {[%clk 0:00:13.7]} 42... h5 {[%clk 0:00:05.9]} 43.
Kg5 {[%clk 0:00:06.9]} 43... Bb3 {[%clk 0:00:06.5]} 44. a5 {[%clk 0:00:06.9]}
44... Ke6 {[%clk 0:00:07.2]} 45. Rc7 {[%clk 0:00:04.7]} 45... Bd5 {[%clk
0:00:07.3]} 46. Rh7 {[%clk 0:00:04.6]} 46... Kxe5 {[%clk 0:00:06.2]} 47. Rxh5
{[%clk 0:00:04.8]} 47... Kd4 {[%clk 0:00:06.9]} 48. Kf6 {[%clk 0:00:04.4]} 48...
Kc4 {[%clk 0:00:06.6]} 49. Ke7 {[%clk 0:00:04.5]} 49... Bc6 {[%clk 0:00:07]} 50.
Rh4+ {[%clk 0:00:04.3]} 50... Kb5 {[%clk 0:00:07]} 51. Kd6 {[%clk 0:00:04.6]}
51... Bg2 {[%clk 0:00:07.1]} 52. Rf4 {[%clk 0:00:03.4]} 52... Bc6 {[%clk
0:00:07.6]} 53. Ke5 {[%clk 0:00:03.4]} 53... Bh1 {[%clk 0:00:07.4]} 54. Kd6
{[%clk 0:00:04]} 54... Bc6 {[%clk 0:00:07.8]} 55. Ke5 {[%clk 0:00:04.7]} 55...
Ka4 {[%clk 0:00:07.9]} 56. Rd4 {[%clk 0:00:05.6]} 56... Kb3 {[%clk 0:00:07.3]}
57. Kd6 {[%clk 0:00:06.5]} 57... Kc3 {[%clk 0:00:07.4]} 58. Kc5 {[%clk
0:00:07.4]} 58... Kb3 {[%clk 0:00:07.3]} 59. Rf4 {[%clk 0:00:08]} 59... Bb5
{[%clk 0:00:06.4]} 60. Rf6 {[%clk 0:00:08.9]} 60... Bc6 {[%clk 0:00:06.7]} 61.
Rxc6 {[%clk 0:00:07.8]} 61... bxc6 {[%clk 0:00:07.1]} 62. Kxc6 {[%clk
0:00:08.7]} 62... Kxb4 {[%clk 0:00:07.7]} 63. Kb6 {[%clk 0:00:09.5]} 63... Kc4
{[%clk 0:00:06.1]} 64. Kxa6 {[%clk 0:00:10.4]} 64... Kb4 {[%clk 0:00:06.4]} 65.
Kb6 {[%clk 0:00:10.7]} 1-0

[Event "Late-Titled-Tuesday-Blitz-September-12-2023"]
[Site "Chess.com"]
[Date "2023.09.12"]
[Round "1"]
[White "SmirnovAlexandrA"]
[Black "Aleksandar-Topalov"]
[Result "0-1"]
[WhiteElo "2625"]
[BlackElo "2356"]
[TimeControl "180+1"]
[EndTime "14:08:23 PDT"]
[Termination "Aleksandar-Topalov won by resignation"]

1. e4 {[%clk 0:02:54.9]} 1... e6 {[%clk 0:02:59.6]} 2. d4 {[%clk 0:02:54.8]}
2... d5 {[%clk 0:02:59.3]} 3. Nc3 {[%clk 0:02:55.3]} 3... Bb4 {[%clk 0:02:58.4]}
4. Ne2 {[%clk 0:02:54.2]} 4... Nf6 {[%clk 0:02:57.2]} 5. e5 {[%clk 0:02:53.8]}
5... Ng8 {[%clk 0:02:57.2]} 6. a3 {[%clk 0:02:53.1]} 6... Bf8 {[%clk 0:02:50]}
7. Ng3 {[%clk 0:02:41.2]} 7... b6 {[%clk 0:02:48.6]} 8. Be2 {[%clk 0:02:31]}
8... Ba6 {[%clk 0:02:46.2]} 9. O-O {[%clk 0:02:29.8]} 9... Bxe2 {[%clk
0:02:45.4]} 10. Ncxe2 {[%clk 0:02:30.7]} 10... h5 {[%clk 0:02:44.8]} 11. f4
{[%clk 0:02:26.1]} 11... g6 {[%clk 0:02:42.9]} 12. c3 {[%clk 0:02:23.3]} 12...
Qd7 {[%clk 0:02:41.4]} 13. a4 {[%clk 0:02:20.9]} 13... c5 {[%clk 0:02:33.6]} 14.
Be3 {[%clk 0:02:20.3]} 14... Nc6 {[%clk 0:02:32.4]} 15. Nc1 {[%clk 0:02:15.5]}
15... Nh6 {[%clk 0:02:28.4]} 16. h3 {[%clk 0:02:14.7]} 16... h4 {[%clk 0:02:28]}
17. Nge2 {[%clk 0:02:12.7]} 17... Nf5 {[%clk 0:02:28.1]} 18. Bf2 {[%clk
0:02:13.3]} 18... Be7 {[%clk 0:02:25.7]} 19. Nd3 {[%clk 0:02:12.3]} 19... cxd4
{[%clk 0:02:04.7]} 20. Nxd4 {[%clk 0:02:03.6]} 20... Ncxd4 {[%clk 0:02:03.3]}
21. cxd4 {[%clk 0:02:04.5]} 21... O-O {[%clk 0:01:58.9]} 22. Qb3 {[%clk
0:01:59.9]} 22... Rac8 {[%clk 0:01:54.9]} 23. a5 {[%clk 0:01:59.3]} 23... b5
{[%clk 0:01:25.7]} 24. a6 {[%clk 0:01:59]} 24... Rc4 {[%clk 0:01:22.8]} 25. Nc5
{[%clk 0:01:44.1]} 25... Qc6 {[%clk 0:00:54.1]} 26. Ra5 {[%clk 0:01:30.1]} 26...
Bxc5 {[%clk 0:00:49.6]} 27. dxc5 {[%clk 0:01:29.2]} 27... Rb8 {[%clk 0:00:49.4]}
28. Qf3 {[%clk 0:00:48.2]} 28... Kg7 {[%clk 0:00:19.4]} 29. b3 {[%clk
0:00:38.9]} 29... Rc2 {[%clk 0:00:17.9]} 30. Qd3 {[%clk 0:00:32.8]} 30... Rxf2
{[%clk 0:00:15]} 31. Rxf2 {[%clk 0:00:31.5]} 31... Qxc5 {[%clk 0:00:15.5]} 32.
Ra2 {[%clk 0:00:27.1]} 32... Ng3 {[%clk 0:00:13.7]} 33. Rc2 {[%clk 0:00:20.4]}
33... Qb6 {[%clk 0:00:12.7]} 34. Kh2 {[%clk 0:00:19.3]} 34... Qxa6 {[%clk
0:00:12.7]} 35. Rf3 {[%clk 0:00:19.6]} 35... Qa1 {[%clk 0:00:12.4]} 36. Rxg3
{[%clk 0:00:19.6]} 36... hxg3+ {[%clk 0:00:13]} 37. Kxg3 {[%clk 0:00:20.4]}
37... Qe1+ {[%clk 0:00:13.3]} 38. Kh2 {[%clk 0:00:19.7]} 38... b4 {[%clk
0:00:13.3]} 39. Rc7 {[%clk 0:00:18.9]} 39... Qe4 {[%clk 0:00:11.4]} 40. Qxe4
{[%clk 0:00:17.9]} 40... dxe4 {[%clk 0:00:11.4]} 41. Rc4 {[%clk 0:00:18.6]}
41... a5 {[%clk 0:00:10.7]} 42. Kg1 {[%clk 0:00:17.4]} 42... Rd8 {[%clk
0:00:10]} 43. Rc5 {[%clk 0:00:16.7]} 43... Rd3 {[%clk 0:00:09.6]} 44. Rxa5
{[%clk 0:00:16.7]} 44... Rxb3 {[%clk 0:00:09.9]} 45. Rb5 {[%clk 0:00:17]} 45...
e3 {[%clk 0:00:10.1]} 46. Kf1 {[%clk 0:00:17.2]} 46... Rb2 {[%clk 0:00:10.4]}
47. g4 {[%clk 0:00:16.9]} 47... b3 {[%clk 0:00:10.4]} 48. Ke1 {[%clk 0:00:16.1]}
48... Rf2 {[%clk 0:00:10.1]} 49. Rxb3 {[%clk 0:00:16]} 49... Rf3 {[%clk
0:00:10.1]} 50. h4 {[%clk 0:00:14.7]} 50... Rxf4 {[%clk 0:00:10.5]} 51. h5
{[%clk 0:00:15.1]} 51... Rxg4 {[%clk 0:00:10.4]} 52. hxg6 {[%clk 0:00:14.7]}
52... Kxg6 {[%clk 0:00:10.8]} 53. Rxe3 {[%clk 0:00:15.2]} 53... Rf4 {[%clk
0:00:09.9]} 54. Ke2 {[%clk 0:00:14.9]} 54... Kf5 {[%clk 0:00:10.2]} 55. Ra3
{[%clk 0:00:14.3]} 55... Re4+ {[%clk 0:00:10]} 56. Kf3 {[%clk 0:00:14.4]} 56...
Rxe5 {[%clk 0:00:10.2]} 57. Ra7 {[%clk 0:00:15.3]} 57... f6 {[%clk 0:00:10.6]}
58. Kg3 {[%clk 0:00:15.8]} 58... Rd5 {[%clk 0:00:10.8]} 59. Kf2 {[%clk
0:00:16.2]} 59... Rd3 {[%clk 0:00:10.7]} 60. Ke2 {[%clk 0:00:16.5]} 60... Rh3
{[%clk 0:00:10.5]} 61. Rg7 {[%clk 0:00:16.1]} 61... e5 {[%clk 0:00:10.2]} 62.
Kf2 {[%clk 0:00:16.7]} 62... Kf4 {[%clk 0:00:10]} 63. Ke2 {[%clk 0:00:17]} 63...
Rh2+ {[%clk 0:00:10.2]} 64. Kd3 {[%clk 0:00:17]} 64... e4+ {[%clk 0:00:10.6]}
65. Kc3 {[%clk 0:00:17]} 65... f5 {[%clk 0:00:10.5]} 66. Rh7 {[%clk 0:00:17.3]}
66... Rxh7 {[%clk 0:00:10]} 0-1